Workbook

Sheet Sheet1
A1: Units Sold | B1: Total Variable Cost | C1: Total Cost | D1: Total Revenue | F1: Fixed Cost | G1: $5,000.00
A2: 0 | B2: =A2*$G$2 -> $0.00 | C2: =$G$1+B2 -> $5,000.00 | D2: =A2*$G$3 -> $0.00 | F2: Variable Cost | G2: $10.00
A3: 100 | B3: =A3*$G$2 -> $1,000.00 | C3: =$G$1+B3 -> $6,000.00 | D3: =A3*$G$3 -> $2,500.00 | F3: Selling Price | G3: $25.00
A4: 200 | B4: =A4*$G$2 -> $2,000.00 | C4: $7,000.00 | D4: $5,000.00 | F4: Break Even Point | G4: =G1/(G3-G2) -> 333.3333333
A5: 300 | B5: =A5*$G$2 -> $3,000.00 | C5: $8,000.00 | D5: $7,500.00 | F5: Break Even Revenue | G5: =G4*G3 -> $8,333.33
A6: 400 | B6: =A6*$G$2 -> $4,000.00 | C6: $9,000.00 | D6: $10,000.00
A7: 500 | B7: =A7*$G$2 -> $5,000.00 | C7: $10,000.00 | D7: $12,500.00
A8: 600 | B8: =A8*$G$2 -> $6,000.00 | C8: $11,000.00 | D8: $15,000.00
A9: 700 | B9: =A9*$G$2 -> $7,000.00 | C9: $12,000.00 | D9: $17,500.00
A10: 800 | B10: =A10*$G$2 -> $8,000.00 | C10: $13,000.00 | D10: $20,000.00
A11: 900 | B11: =A11*$G$2 -> $9,000.00 | C11: $14,000.00 | D11: $22,500.00
A12: 1000 | B12: =A12*$G$2 -> $10,000.00 | C12: $15,000.00 | D12: $25,000.00
